Cogmind - Beta 14 @@@ ROGUE MODE // 2024.10.06 @ 19:52:32 Player: celerysam Result: Destroyed by B-99 Colossus with Multirail Performance ------------- Evolutions (9) 4500 Regions Visited (16) 3200 Robots Destroyed (68) 340 Value Destroyed (1931) 1931 Prototype IDs (29) 580 Alien Tech Used (0) 0 Bonus (853) 853 TOTAL SCORE: 11404 Bonus ------- High Alert Combat Kills 53 Entered DSFs 500 Aligned with FarCom 300 Cogmind --------- Core Integrity 0/1600 Matter 300/300 Energy 100/100 System Corruption 14% Temperature Cool (0) Movement Core (50) Location -1/Access Parts ------- > --- POWER (3) -------- (None) > --- PROPULSION (9) --- (None) > --- UTILITY (11) ----- Enhanced Optical Array > --- WEAPON (2) ------- (None) > --- INVENTORY (5) ---- Improved Ion Engine Light Antimatter Reactor Light Quantum Reactor Layered Medium Armor Plating Micro-nuke Launcher Peak State ------------ > --- POWER ------------ Micro Nuclear Core Light Particle Reactor Micro Antimatter Reactor > --- PROPULSION ------- Improved Flight Unit Improved VTOL Module Cooled Field Propulsion Drive Flying Fortress v7 Q-thruster Q-thruster > --- UTILITY ---------- Improved Cooling System Large Storage Unit Energy Well Enhanced Optical Array Improved Signal Interpreter Transmission Jammer ECM Suite Advanced Reaction Control System Improved Light Armor Plating Hacking Suite Hacking Suite > --- WEAPON ----------- Enhanced Nova Cannon Molecular Scythe > --- INVENTORY -------- Improved Ion Engine Light Antimatter Reactor Light Quantum Reactor Impulse Thruster Array Advanced Power Amplifier Advanced Transmission Jammer Advanced ECM Suite Improved Medium Armor Plating Layered Medium Armor Plating Improved Force Field Tesla Rifle Railgun Micro-nuke Launcher Advanced Datajack [Rating: 148] Favorites ----------- Power Light Deuterium Engine Engine Light Deuterium Engine Power Core Micro Nuclear Core Reactor Micro Antimatter Reactor Propulsion Light Treads Treads Light Treads Wheel Compact Wheel Flight Unit Flying Fortress v7 Utility Hacking Suite Device Seismic Detector Storage Large Storage Unit Processor Improved Signal Interpreter Hackware Hacking Suite Protection Improved Light Armor Plating Weapon Light Cannon Energy Gun Tesla Rifle Energy Cannon Enhanced Nova Cannon Ballistic Gun Railgun Ballistic Cannon Light Cannon Launcher Grenade Launcher Slashing Weapon Axe Special Melee Weapon Improved Datajack Build | -11 -10 -9 -9 -9 -8 -8 -7 -7 -7 -6 -6 -5 -4 -3 -2 -1 ------- Run | Yrd Mat Mat Min Exi Min Mat Fac Was Fac Fac DSF Fac Fac Res Res Acc Slots Evolved 18 | . . 2 . . . 2 2 . . 2 . 2 2 2 2 2 Power 2 | . . . . . . . 1 . . . . . . . 1 . Propulsion 7 | . . 1 . . . 1 . . . 1 . 1 1 1 . 1 Utility 9 | . . 1 . . . 1 1 . . 1 . 1 1 1 1 1 Weapon . | . . . . . . . . . . . . . . . . . Parts Attached 104 | 5 7 8 . 3 . 18 3 3 11 2 1 3 9 7 7 17 Power 15 | . 2 2 . . . 2 1 1 . . . 1 . 2 3 1 Engine 7 | . 2 2 . . . 2 1 . . . . . . . . . Core 4 | . . . . . . . . 1 . . . 1 . . 2 . Reactor 4 | . . . . . . . . . . . . . . 2 1 1 Propulsion 25 | 2 1 3 . 1 . 7 . 1 . 1 . 1 1 3 . 4 Treads 8 | . . 3 . 1 . 4 . . . . . . . . . . Leg . | . . . . . . . . . . . . . . . . . Wheel 4 | 2 1 . . . . . . . . . . . . . . 1 Hover . | . . . . . . . . . . . . . . . . . Flight 13 | . . . . . . 3 . 1 . 1 . 1 1 3 . 3 Utility 27 | 1 2 1 . . . 4 1 . 3 1 . 1 2 2 2 7 Device 12 | . 1 . . . . . . . 2 . . 1 2 1 1 4 Storage 3 | 1 1 . . . . . . . . . . . . . 1 . Processor 3 | . . . . . . 1 . . 1 . . . . 1 . . Hackware 3 | . . . . . . 1 1 . . . . . . . . 1 Protection 6 | . . 1 . . . 2 . . . 1 . . . . . 2 Artifact . | . . . . . . . . . . . . . . . . . Weapon 37 | 2 2 2 . 2 . 5 1 1 8 . 1 . 6 . 2 5 Energy Gun 5 | 2 1 . . . . . . . . . . . 2 . . . Energy Cannon 2 | . . . . . . . . . . . . . . . . 2 Ballistic Gun 3 | . 1 . . . . . . . . . . . . . 1 1 Ballistic Cannon 15 | . . 2 . 2 . 4 1 1 5 . . . . . . . Launcher 7 | . . . . . . 1 . . 2 . 1 . 1 . 1 1 Special Weapon . | . . . . . . . . . . . . . . . . . Impact Weapon . | . . . . . . . . . . . . . . . . . Slashing Weapon 3 | . . . . . . . . . 1 . . . 1 . . 1 Piercing Weapon . | . . . . . . . . . . . . . . . . . Special Melee Weapon 2 | . . . . . . . . . . . . . 2 . . . Unidentified Prototypes 6 | . . . . . . 2 . . 1 . . . . . . 3 Parts Lost 30 | . 1 . . . . 4 . 1 . . 1 . . . 1 22 Power 6 | . 1 . . . . 1 . 1 . . 1 . . . . 2 Propulsion 8 | . . . . . . . . . . . . . . . . 8 Utility 15 | . . . . . . 3 . . . . . . . . 1 11 Weapon 1 | . . . . . . . . . . . . . . . . 1 Highest Loss Streak 22 | . 1 . . . . 2 . 1 . . 1 . . . 1 22 To Critical Strikes . | . . . . . . . . . . . . . . . . . Average Slot Usage (%) 89 | . 92 89 100 100 100 91 97 73 75 80 73 81 83 85 85 82 Engine 7 | . 9 11 11 11 11 8 14 12 7 6 3 . . . . . Core 2 | . . . . . . . . 1 7 6 6 11 10 5 3 3 Reactor 1 | . . . . . . . . . . . . . . 2 8 7 Treads 16 | . . 27 33 33 33 31 30 . . . . . . . . . Wheel 2 | . 28 2 . . . . . . . . . . . . . . Flight 7 | . . . . . . 1 . 7 7 13 13 17 21 23 21 22 Device 9 | . 10 11 11 11 11 3 . . 5 6 6 10 14 14 15 14 Storage 8 | . 14 11 11 11 11 9 7 7 7 6 6 5 5 4 5 7 Processor 4 | . . . . . . 5 7 7 7 6 6 5 5 9 8 8 Hackware 5 | . . . . . . 1 13 15 15 13 13 11 10 9 8 7 Protection 6 | . . 4 11 11 11 12 7 7 1 6 6 5 5 4 4 3 Energy Gun 1 | . 21 . . . . . . . . . . . 2 4 2 . Ballistic Cannon 11 | . . 22 22 22 22 17 15 13 8 6 1 . . . . . Slashing Weapon 1 | . . . . . . . . . 4 6 6 5 4 4 4 3 Peak Build Rating 148 | 5 9 12 12 15 15 26 34 59 63 66 66 72 90 113 124 148 Average Rating 48 | 2 7 10 12 13 14 21 32 56 60 65 62 71 86 104 119 130 On Entrance 45 | . 5 9 12 12 15 15 26 34 58 61 66 61 72 90 110 121 Naked Turns . | . . . . . . . . . . . . . . . . . Heaviest Build 81 | 7 30 37 37 37 37 39 42 42 45 45 45 43 48 58 70 81 Greatest Support 83 | 26 32 60 60 60 60 80 80 50 50 55 55 58 64 72 71 83 Greatest Overweight (x) 6 | 1 . . . . . . . . . . . . . . . 6 Average Overweight (x) . | . . . . . . . . . . . . . . . . . Largest Inventory Capacity 15 | 8 15 15 15 15 15 15 15 15 15 15 15 15 15 15 15 15 Average Capacity 14 | 7 9 15 15 15 15 15 15 15 15 15 15 15 15 15 15 14 Most Carried 15 | 8 11 15 15 15 15 15 15 15 15 14 15 15 15 15 15 15 Average Carried 14 | 5 7 13 15 14 14 14 14 10 13 13 14 13 14 14 13 14 Final Capacity 15 | 8 15 15 15 15 15 15 15 15 15 15 15 15 15 15 15 5 Final Carried 15 | 7 11 15 15 15 15 15 15 9 15 13 15 15 15 15 15 5 Class Distribution -------------------- 47% | Mutant 23% | Hacker-Mutant 22% | Hacker-Sprinter 5% | Scavenger-Mutant Dominant Class ---------------- Mutant | -10/Materials Mutant | -9/Materials Mutant | -9/Mines Mutant | -9/Exiles Mutant | -8/Mines Mutant | -8/Materials Hacker-Mutant | -7/Factory Hacker-Mutant | -7/Waste Hacker-Mutant | -7/Factory Hacker-Mutant | -6/Factory Hacker-Mutant | -6/DSF Hacker-Mutant | -5/Factory Hacker-Sprinter | -4/Factory Hacker-Sprinter | -3/Research Hacker-Sprinter | -2/Research Hacker-Sprinter | -1/Access Resources | -11 -10 -9 -9 -9 -8 -8 -7 -7 -7 -6 -6 -5 -4 -3 -2 -1 ----------- Run | Yrd Mat Mat Min Exi Min Mat Fac Was Fac Fac DSF Fac Fac Res Res Acc Matter Collected 2003 | 227 53 218 86 . 65 415 199 . 52 . 18 89 . 274 80 227 Remotely . | . . . . . . . . . . . . . . . . . Salvage Created 1820 | . 196 226 111 . 25 601 . . 76 . 18 89 . 78 110 290 Parts 131 | . 12 15 3 . 4 58 . . 4 . 6 2 . 7 8 12 Haulers Intercepted 4 | . . . . . . 3 . . . . . 1 . . . . Recyclers Shooed . | . . . . . . . . . . . . . . . . . Parts Field Recycled . | . . . . . . . . . . . . . . . . . Retrieved Matter . | . . . . . . . . . . . . . . . . . Parts Self-Destructed . | . . . . . . . . . . . . . . . . . Prevented . | . . . . . . . . . . . . . . . . . Kills | -11 -10 -9 -9 -9 -8 -8 -7 -7 -7 -6 -6 -5 -4 -3 -2 -1 ------- Run | Yrd Mat Mat Min Exi Min Mat Fac Was Fac Fac DSF Fac Fac Res Res Acc Combat Hostiles Destroyed 47 | . 4 6 3 . 3 21 . . 1 . 2 . . . 4 3 Guns 5 | . 4 . . . . . . . . . . . . . 1 . Cannons 29 | . . 6 3 . 3 16 . . 1 . . . . . . . AOE 13 | . . . . . . 5 . . . . 2 . . . 3 3 Classes Destroyed 13 | . 3 1 . . 1 4 . . . . 1 . . . . 3 Worker 2 | . . . . . . 1 . . 1 . . . . . . . Builder 7 | . . . . . . 2 . . . . . . . 1 1 3 Tunneler 1 | . . . . . . 1 . . . . . . . . . . Hauler 4 | . . . . . . 3 . . . . . 1 . . . . Recycler 1 | . . . . . . . . . . . . . . . . 1 Operator 1 | . 1 . . . . . . . . . . . . . . . Watcher 5 | . 1 1 . . . 2 . . . . . . . 1 . . Swarmer 18 | . . . . . 3 11 . . . . . . . . 4 . Cutter 2 | . . . . . . . . . . . 2 . . . . . Grunt 17 | . 4 3 3 . . 7 . . . . . . . . . . Sentry 7 | . . 3 . . . 3 . . 1 . . . . . . . Hunter 2 | . . . . . . . . . . . . . . . . 2 Programmer 1 | . . . . . . . . . . . . . . . . 1 Best Kill Streak 11 | . 2 5 3 . 3 11 . . 1 . 2 1 . 2 5 7 Combat Bots Only 5 | . 2 3 3 . 3 5 . . 1 . 2 . . . 4 3 Max Kills in Single Turn 4 | . 1 1 2 . 1 4 . . 1 . 1 1 . 1 3 3 Gunslinging . | . . . . . . . . . . . . . . . . . Exploded 4 | . . . . . . 4 . . . . 1 . . . 3 2 Melee . | . . . . . . . . . . . . . . . . . Uniques/NPCs Destroyed . | . . . . . . . . . . . . . . . . . Combat | -11 -10 -9 -9 -9 -8 -8 -7 -7 -7 -6 -6 -5 -4 -3 -2 -1 -------- Run | Yrd Mat Mat Min Exi Min Mat Fac Was Fac Fac DSF Fac Fac Res Res Acc Hostile Shots Fired 598 | . 17 28 7 . 12 108 . 1 35 . 12 . . 18 7 353 Missed 259 | . 6 6 3 . 3 35 . . 24 . 6 . . 13 3 160 Damage Taken 5839 | . 182 316 56 . 70 763 . 49 86 . 107 . . 103 87 4020 Core 1732 | . 20 15 . . 16 48 . . 28 . 5 . . . . 1600 Absorbed by Shields . | . . . . . . . . . . . . . . . . . Redirected to Shielding 53 | . . . . . . 53 . . . . . . . . . . Core Remaining (%) 97 | 100 92 . . . 92 91 . . 96 . 99 100 100 100 100 . Volleys Fired 128 | . 17 17 6 . 5 49 1 . 4 . 2 . . 4 3 20 Largest 2 | . 2 2 2 . 2 2 2 . 2 . 1 . . 1 1 1 Hottest 120 | . 80 70 70 . 70 74 83 . 92 . 30 . . 65 49 120 Shots Fired 224 | . 34 34 12 . 10 96 2 . 7 . 2 . . 4 3 20 Gun 42 | . 34 . . . . . . . . . . . . 4 2 2 Cannon 169 | . . 34 12 . 10 91 2 . 7 . . . . . . 13 Launcher 13 | . . . . . . 5 . . . . 2 . . . 1 5 Special . | . . . . . . . . . . . . . . . . . Kinetic 160 | . . 34 12 . 10 91 2 . 7 . . . . . 2 2 Thermal 47 | . 34 . . . . . . . . . . . . . . 13 Explosive 13 | . . . . . . 5 . . . . 2 . . . 1 5 Electromagnetic 4 | . . . . . . . . . . . . . . 4 . . Robot Hit Streak 10 | . 10 8 7 . 3 9 . . 4 . . . . 1 2 . Robot Miss Streak 11 | . 4 3 3 . 2 11 3 . 4 . . . . 2 3 1 Penetration Max 1 | . . . . . . . . . . . . . . . 1 . Secondary Targets . | . . . . . . . . . . . . . . . . . Shots Hit Robots 120 | . 23 21 8 . 4 46 . . 6 . . 1 6 3 2 . Core Hits 102 | . 12 11 4 . 3 43 . . 3 . 4 1 . 2 6 13 Critical Kills . | . . . . . . . . . . . . . . . . . Critical Parts Destroyed . | . . . . . . . . . . . . . . . . . Critical Strikes 5 | . . 3 . . 1 1 . . . . . . . . . . Blast 5 | . . 3 . . 1 1 . . . . . . . . . . Melee Attacks 83 | . . . . . . . . . 8 . . 2 20 19 9 25 Impact . | . . . . . . . . . . . . . . . . . Slashing 77 | . . . . . . . . . 8 . . 2 14 19 9 25 Piercing . | . . . . . . . . . . . . . . . . . Sneak Attacks 10 | . . . . . . . . . 2 . . 1 6 1 . . Combat Hostiles 6 | . . . . . . . . . . . . . 6 . . . Follow-up Attacks . | . . . . . . . . . . . . . . . . . Damage Inflicted 4987 | . 262 375 161 . 74 1773 6 . 234 . 100 77 . 205 654 1066 Guns 434 | . 262 . . . . . . . . . . . . 93 79 . Cannons 1617 | . . 375 161 . 74 901 . . 106 . . . . . . . Explosions 2613 | . . . . . . 872 . . . . 100 . . . 575 1066 Melee 317 | . . . . . . . . . 128 . . 77 . 112 . . Ramming 6 | . . . . . . . 6 . . . . . . . . . Kinetic 1696 | . . 375 161 . 74 901 . . 106 . . . . . 79 . Thermal 753 | . 262 . . . . 491 . . . . . . . . . . Explosive 2122 | . . . . . . 381 . . . . 100 . . . 575 1066 Electromagnetic 93 | . . . . . . . . . . . . . . 93 . . Impact . | . . . . . . . . . . . . . . . . . Slashing 317 | . . . . . . . . . 128 . . 77 . 112 . . Piercing . | . . . . . . . . . . . . . . . . . Highest Corruption 14 | . 1 . . . . . . 5 8 . . . . . . 14 Average Corruption 5 | . 1 . . . . . . 5 5 . . . . . . 6 Corruption Purged . | . . . . . . . . . . . . . . . . . Corruption Blocked . | . . . . . . . . . . . . . . . . . Effects 15 | . . . . . . . . 2 9 . . . . . . 4 Message Errors 2 | . . . . . . . . . 1 . . . . . . 1 Matter Fused 4 | . . . . . . . . 1 2 . . . . . . 1 Heat Flow Errors 3 | . . . . . . . . 1 2 . . . . . . . Energy Discharges 2 | . . . . . . . . . 1 . . . . . . 1 Data Loss (minor) 1 | . . . . . . . . . 1 . . . . . . . Data Loss (major) 3 | . . . . . . . . . 2 . . . . . . 1 Overload Shots . | . . . . . . . . . . . . . . . . . Overflow Damage 210 | . . . . . . 156 . . . . . . . 24 . 30 Projectiles 15 | . . . . . . 15 . . . . . . . . . . Explosions 171 | . . . . . . 141 . . . . . . . . . 30 Melee 24 | . . . . . . . . . . . . . . 24 . . Knockbacks 12 | . . 1 3 . . 8 . . . . . . . . . . Impact . | . . . . . . . . . . . . . . . . . Kinetic 12 | . . 1 3 . . 8 . . . . . . . . . . Secondary . | . . . . . . . . . . . . . . . . . Self-Inflicted Damage 12 | . . . . . . . . . . . 7 . . . 5 . Shots 2 | . . . . . . . . . . . 1 . . . 1 . Rammed 1 | . . . . . . . 1 . . . . . . . . . Targets Rammed 1 | . . . . . . . 1 . . . . . . . . . Kicked . | . . . . . . . . . . . . . . . . . Crushed . | . . . . . . . . . . . . . . . . . Highest Temperature 369 | . 122 101 105 . 60 83 21 210 150 . . . 2 237 . 369 Average Temperature 65 | . 33 31 52 . 31 25 11 118 63 . . . 2 106 . 113 Received Heat Transfer 529 | . 72 126 33 . . 216 . . 6 . 12 . . 37 . 27 Effects 1 | . . . . . . . . . . . . . . . . 1 Energy Bleed 1 | . . . . . . . . . . . . . . . . 1 Siege Activations . | . . . . . . . . . . . . . . . . . Robots Corrupted . | . . . . . . . . . . . . . . . . . Combat Hostiles . | . . . . . . . . . . . . . . . . . Parts Fried . | . . . . . . . . . . . . . . . . . Impact Corruptions . | . . . . . . . . . . . . . . . . . Robots Melted . | . . . . . . . . . . . . . . . . . Combat Hostiles . | . . . . . . . . . . . . . . . . . Parts Melted . | . . . . . . . . . . . . . . . . . Heat Transferred 1000 | . 600 . . . . 400 . . . . . . . . . . Parts Sabotaged . | . . . . . . . . . . . . . . . . . Parts Stolen . | . . . . . . . . . . . . . . . . . Parts Stripped . | . . . . . . . . . . . . . . . . . Power Chain Reactions . | . . . . . . . . . . . . . . . . . Alert | -11 -10 -9 -9 -9 -8 -8 -7 -7 -7 -6 -6 -5 -4 -3 -2 -1 ------- Run | Yrd Mat Mat Min Exi Min Mat Fac Was Fac Fac DSF Fac Fac Res Res Acc Peak Influence 524 | . 159 289 182 . 70 457 207 22 118 16 60 40 103 178 189 524 Initial 207 | . . 62 112 . . . 207 7 8 16 13 31 19 43 . 112 Average 132 | . 102 205 154 . 54 222 172 11 49 16 20 34 62 93 97 248 Maximum Alert Level 2 | . . 1 . . . 2 1 . . . . . . . . 2 Low Security (%) 72 | 100 100 59 100 . 100 43 18 100 100 100 100 100 100 100 100 27 Level 1 22 | . . 40 . . . 29 81 . . . . . . . . 65 Level 2 4 | . . . . . . 27 . . . . . . . . . 6 Level 3 . | . . . . . . . . . . . . . . . . . Level 4 . | . . . . . . . . . . . . . . . . . Level 5 . | . . . . . . . . . . . . . . . . . High Security . | . . . . . . . . . . . . . . . . . Max Security . | . . . . . . . . . . . . . . . . . Squads Dispatched 17 | . . . . . . 2 1 . 3 . 1 . 4 . 1 5 Investigation 2 | . . . . . . . . . 2 . . . . . . . Extermination 2 | . . . . . . . . . . . . . 1 . . 1 Reinforcement 13 | . . . . . . 2 1 . 1 . 1 . 3 . 1 4 Assault . | . . . . . . . . . . . . . . . . . Garrison . | . . . . . . . . . . . . . . . . . Intercept . | . . . . . . . . . . . . . . . . . Searches Triggered . | . . . . . . . . . . . . . . . . . Construction Impeded 2 | . . . . . . . . . . . . . 1 . . 1 Haulers Reinforced 1 | . . . . . . . . . . . . . 1 . . . Active Scanning Responses . | . . . . . . . . . . . . . . . . . Cargo Convoy Interrupts . | . . . . . . . . . . . . . . . . . Stealth | -11 -10 -9 -9 -9 -8 -8 -7 -7 -7 -6 -6 -5 -4 -3 -2 -1 --------- Run | Yrd Mat Mat Min Exi Min Mat Fac Was Fac Fac DSF Fac Fac Res Res Acc Distress Signals 10 | . 1 . . . . 3 . . . . . . 1 2 . 3 Communications Jammed 46 | . . . . . . . . . . . . . . . 6 40 Distress Signals 46 | . . . . . . . . . . . . . . . 6 40 Times Spotted 130 | . 8 7 3 . 3 27 1 6 6 . 6 . 1 14 6 42 Peak Tracking Total 10 | . 3 3 3 . 2 6 1 6 2 . 3 . 1 6 5 10 Tactical Retreats 15 | . 1 . . . . . . . . . 2 . . 3 1 8 Traps | -11 -10 -9 -9 -9 -8 -8 -7 -7 -7 -6 -6 -5 -4 -3 -2 -1 ------- Run | Yrd Mat Mat Min Exi Min Mat Fac Was Fac Fac DSF Fac Fac Res Res Acc Traps Triggered 9 | . 1 . . . . 1 1 . 4 . . . . 2 . . Indirectly . | . . . . . . . . . . . . . . . . . Trap Hack Attempts . | . . . . . . . . . . . . . . . . . Triggered . | . . . . . . . . . . . . . . . . . Disarmed . | . . . . . . . . . . . . . . . . . Reprogrammed . | . . . . . . . . . . . . . . . . . Reused . | . . . . . . . . . . . . . . . . . Traps Extracted . | . . . . . . . . . . . . . . . . . Installed . | . . . . . . . . . . . . . . . . . Triggered . | . . . . . . . . . . . . . . . . . Machines | -11 -10 -9 -9 -9 -8 -8 -7 -7 -7 -6 -6 -5 -4 -3 -2 -1 ---------- Run | Yrd Mat Mat Min Exi Min Mat Fac Was Fac Fac DSF Fac Fac Res Res Acc Machines Disabled 8 | . . 1 . . . 6 . . . . . . . . . 1 Max in Single Turn 4 | . . 1 . . . 4 . . . . . . . . . 1 Machines Repaired . | . . . . . . . . . . . . . . . . . Machines Dismantled . | . . . . . . . . . . . . . . . . . Machines Sabotaged . | . . . . . . . . . . . . . . . . . Overloaded Fab Kills . | . . . . . . . . . . . . . . . . . Hacking | -11 -10 -9 -9 -9 -8 -8 -7 -7 -7 -6 -6 -5 -4 -3 -2 -1 --------- Run | Yrd Mat Mat Min Exi Min Mat Fac Was Fac Fac DSF Fac Fac Res Res Acc Machines Accessed 20 | . 2 . . 1 . 1 3 . 3 2 . 1 1 3 1 2 Terminals 15 | . 2 . . . . 1 3 . 2 1 . 1 1 2 1 1 Fabricators 4 | . . . . . . . . . 1 1 . . . 1 . 1 Repair Stations . | . . . . . . . . . . . . . . . . . Recycling Units . | . . . . . . . . . . . . . . . . . Scanalyzers . | . . . . . . . . . . . . . . . . . Garrison Access . | . . . . . . . . . . . . . . . . . Total Hacks 27 | . 4 . . 1 . 1 3 . 6 2 . 1 2 3 2 2 Successful 14 | . 3 . . 1 . 1 . . 3 2 . 1 . 1 2 . Failed 13 | . 1 . . . . . 3 . 3 . . . 2 2 . 2 Catastrophic 2 | . . . . . . . 2 . . . . . . . . . Database Lockouts . | . . . . . . . . . . . . . . . . . Manual 11 | . 3 . . 1 . 1 2 . 2 . . . 2 . . . Terminals 22 | . 4 . . . . 1 3 . 5 1 . 1 2 2 2 1 Fabricators 4 | . . . . . . . . . 1 1 . . . 1 . 1 Repair Stations . | . . . . . . . . . . . . . . . . . Recycling Units . | . . . . . . . . . . . . . . . . . Scanalyzers . | . . . . . . . . . . . . . . . . . Garrison Access . | . . . . . . . . . . . . . . . . . Terminal Hacks 8 | . 1 . . 1 . . . . 1 1 . 1 . 1 2 . Record 1 | . . . . . . . . . . . . . . . 1 . Open DSF 1 | . . . . . . . . . . 1 . . . . . . Level Access Points 2 | . . . . . . . . . 1 . . . . . 1 . Emergency Access Points 1 | . . . . . . . . . . . . . . 1 . . Alert Level 1 | . . . . . . . . . . . . 1 . . . . Recall Reinforcements 1 | . 1 . . . . . . . . . . . . . . . Derelict Proto ID Bank 1 | . . . . 1 . . . . . . . . . . . . Fabricator Hacks 2 | . . . . . . . . . 1 1 . . . . . . Network Status 2 | . . . . . . . . . 1 1 . . . . . . Repair Station Hacks . | . . . . . . . . . . . . . . . . . Recycling Unit Hacks . | . . . . . . . . . . . . . . . . . Scanalyzer . | . . . . . . . . . . . . . . . . . Garrison Access Hacks . | . . . . . . . . . . . . . . . . . Unauthorized Hacks 4 | . 2 . . . . 1 . . 1 . . . . . . . Terminals 4 | . 2 . . . . 1 . . 1 . . . . . . . Assimilate 1 | . 1 . . . . . . . . . . . . . . . Botnet 3 | . 1 . . . . 1 . . 1 . . . . . . . Fabricators . | . . . . . . . . . . . . . . . . . Repair Stations . | . . . . . . . . . . . . . . . . . Recycling Units . | . . . . . . . . . . . . . . . . . Scanalyzers . | . . . . . . . . . . . . . . . . . Garrison Access . | . . . . . . . . . . . . . . . . . Data Cores Recovered 1 | . 1 . . . . . . . . . . . . . . . Used 1 | . 1 . . . . . . . . . . . . . . . Hacking Detections 14 | . 1 . . . . . 3 . 2 1 . 1 1 2 1 2 Full Trace Events 1 | . . . . . . . . . 1 . . . . . . . Feedback Events . | . . . . . . . . . . . . . . . . . Feedback Blocked . | . . . . . . . . . . . . . . . . . Robot Schematics Acquired . | . . . . . . . . . . . . . . . . . Robots Built . | . . . . . . . . . . . . . . . . . Authchips . | . . . . . . . . . . . . . . . . . Time . | . . . . . . . . . . . . . . . . . Total Robot Build Rating . | . . . . . . . . . . . . . . . . . Part Schematics Acquired . | . . . . . . . . . . . . . . . . . Parts Built . | . . . . . . . . . . . . . . . . . Authchips . | . . . . . . . . . . . . . . . . . Time . | . . . . . . . . . . . . . . . . . Total Part Build Rating . | . . . . . . . . . . . . . . . . . Parts Repaired . | . . . . . . . . . . . . . . . . . Time . | . . . . . . . . . . . . . . . . . Parts Recycled . | . . . . . . . . . . . . . . . . . Recycled Matter . | . . . . . . . . . . . . . . . . . Retrieved Matter . | . . . . . . . . . . . . . . . . . Retrieved Components . | . . . . . . . . . . . . . . . . . Parts Scanalyzed . | . . . . . . . . . . . . . . . . . Part Schematics Acquired . | . . . . . . . . . . . . . . . . . Parts Damaged . | . . . . . . . . . . . . . . . . . Bothacking | -11 -10 -9 -9 -9 -8 -8 -7 -7 -7 -6 -6 -5 -4 -3 -2 -1 ------------ Run | Yrd Mat Mat Min Exi Min Mat Fac Was Fac Fac DSF Fac Fac Res Res Acc Used RIF Installer . | . . . . . . . . . . . . . . . . . Robots Hacked . | . . . . . . . . . . . . . . . . . Non-combat . | . . . . . . . . . . . . . . . . . Combat . | . . . . . . . . . . . . . . . . . Robot Hacks Applied . | . . . . . . . . . . . . . . . . . Relay Couplers Released . | . . . . . . . . . . . . . . . . . Fabnet Peak Effective % . | . . . . . . . . . . . . . . . . . Robots Rewired 4 | . . . . . . . . . . . . . 4 . . . Allies Hacked . | . . . . . . . . . . . . . . . . . Hacks Repelled . | . . . . . . . . . . . . . . . . . Allies | -11 -10 -9 -9 -9 -8 -8 -7 -7 -7 -6 -6 -5 -4 -3 -2 -1 -------- Run | Yrd Mat Mat Min Exi Min Mat Fac Was Fac Fac DSF Fac Fac Res Res Acc Total Allies 4 | . . . . . . . . . . . . . 4 . . . Largest Group 4 | . . . . . . . . . . . . . 4 1 . . Highest-Rated Group 159 | . . . . . . . . . . . . . 159 12 . . Highest-Rated Ally 49 | . . . . . . . . . . . . . 49 12 . . Total Orders . | . . . . . . . . . . . . . . . . . Ally Attacks 15 | . . . . . . . . . . . . . 14 1 . . Total Damage 553 | . . . . . . . . . . . . . 541 12 . . Kills 2 | . . . . . . . . . . . . . 2 . . . Allies Corrupted . | . . . . . . . . . . . . . . . . . Allies Melted . | . . . . . . . . . . . . . . . . . Intel | -11 -10 -9 -9 -9 -8 -8 -7 -7 -7 -6 -6 -5 -4 -3 -2 -1 ------- Run | Yrd Mat Mat Min Exi Min Mat Fac Was Fac Fac DSF Fac Fac Res Res Acc Robot Analysis Total . | . . . . . . . . . . . . . . . . . Derelict Logs Recovered . | . . . . . . . . . . . . . . . . . Drone Launches . | . . . . . . . . . . . . . . . . . Drone Recoveries . | . . . . . . . . . . . . . . . . . Exploration | -11 -10 -9 -9 -9 -8 -8 -7 -7 -7 -6 -6 -5 -4 -3 -2 -1 ------------- Run | Yrd Mat Mat Min Exi Min Mat Fac Was Fac Fac DSF Fac Fac Res Res Acc Turns Passed 4966 | 58 316 328 168 477 500 656 488 59 442 55 49 83 273 412 150 452 Spaces Moved 6192 | 53 261 167 94 294 299 291 300 108 688 127 95 205 659 1067 351 1133 Core 35 | 25 . . . . . . . . . . . . . . . 10 Treads 1427 | . . 149 94 294 299 291 300 . . . . . . . . . Legs . | . . . . . . . . . . . . . . . . . Wheels 309 | 28 261 18 . . . . . . . . . . . . . 2 Hover . | . . . . . . . . . . . . . . . . . Flight 4421 | . . . . . . . . 108 688 127 95 205 659 1067 351 1121 Fastest Speed 21 | 50 90 100 160 160 160 160 160 50 50 42 42 35 32 24 28 21 Average Speed 66 | 79 94 153 160 160 160 160 160 50 50 42 42 35 32 29 28 27 Slowest Speed 350 | 100 100 160 160 160 160 160 160 50 50 42 42 35 32 35 28 350 Overloaded Moves 147 | . . . . . . . . . . . . . . 28 . 119 Propulsion Burnouts . | . . . . . . . . . . . . . . . . . Robots Hopped 24 | . . . . . . . . . 1 1 . . 2 7 . 13 Cave-ins Triggered . | . . . . . . . . . . . . . . . . . Exploration Rate (%) 36 | 3 55 18 23 76 84 43 8 95 22 5 82 4 18 37 13 31 Regions Visited 16 Branch Regions 3 Pre-discovered Areas . | . . . . . . . . . . . . . . . . . Known Exits Taken 7 | . . . . . . 1 . . 1 1 . 1 1 1 1 . Unknown Exits Taken 6 | 1 1 1 1 1 1 . . . . . . . . . . . Scrap Searched 1 | . . . . . 1 . . . . . . . . . . . Spaces Dug 64 | . . . . . . . . . 6 . . 1 12 15 8 22 Terrain Destroyed 208 | . . . . . . 33 . . 7 . 7 1 12 15 25 108 Melee 64 | . . . . . . . . . 6 . . 1 12 15 8 22 Projectile 2 | . . . . . . . . . 1 . . . . . . 1 AOE 142 | . . . . . . 33 . . . . 7 . . . 17 85 Terrain Rammed . | . . . . . . . . . . . . . . . . . Walls Destroyed . | . . . . . . . . . . . . . . . . . Machines Disabled . | . . . . . . . . . . . . . . . . . Actions | -11 -10 -9 -9 -9 -8 -8 -7 -7 -7 -6 -6 -5 -4 -3 -2 -1 --------- Run | Yrd Mat Mat Min Exi Min Mat Fac Was Fac Fac DSF Fac Fac Res Res Acc Total 6701 | 67 297 205 103 301 312 388 307 114 764 127 102 212 695 1120 384 1203 Wait 39 | . 2 1 . . 3 11 . . . . . . 2 14 5 1 Move 6131 | 52 260 166 93 293 298 290 300 107 685 124 94 204 655 1052 350 1108 Hop 22 | . . . . . . . . . 1 1 . . 1 7 . 12 Pick Up 89 | 10 7 9 2 1 3 10 1 . 13 . 4 3 4 8 6 8 Fast Attach 10 | 2 1 . . . . 2 1 . 2 . . . 1 . . 1 Attach 42 | 3 2 4 . . . 8 1 3 . 2 1 3 3 2 4 6 Detach 3 | . . . . . . 2 . . . . . . . . . 1 Swap 52 | . 4 4 . 3 . 8 1 . 9 . . . 5 5 3 10 Drop 68 | . 4 4 2 4 3 8 1 4 9 . 1 . 4 9 4 11 Fire 128 | . 17 17 6 . 5 49 1 . 4 . 2 . . 4 3 20 Melee 83 | . . . . . . . . . 8 . . 2 20 19 9 25 Ram . | . . . . . . . . . . . . . . . . . Kick . | . . . . . . . . . . . . . . . . . Crush 1 | . . . . . . . 1 . . . . . . . . . Escape Stasis 33 | . . . . . . . . . 33 . . . . . . . Rewire . | . . . . . . . . . . . . . . . . . Trap . | . . . . . . . . . . . . . . . . . Miscellaneous . | . . . . . . . . . . . . . . . . . Route ------- -11/Scrapyard -10/Materials (discovered 3 exits: [*Mat] / [*Min x2]) -9/Materials -9/Mines -9/Exiles -8/Mines -8/Materials -7/Factory -7/Waste -7/Factory (discovered 4 exits: *Fac x4) -6/Factory -6/DSF -5/Factory (discovered 2 exits: *Fac / *Upp) -4/Factory (discovered 3 exits: *Res / *Upp / *Ext) -3/Research (discovered 2 exits: *Res / [*Qua]) -2/Research (discovered 3 exits: *Acc x3) -1/Access History --------- Turn | Location | Event 18 | -11/Scrapyard | Discovered new exit (range 16) 59 | -11/Scrapyard | Entered Materials 194 | -10/Materials | Discovered new exit (range 7) 248 | -10/Materials | Discovered new exit (range 16) 314 | -10/Materials | Build established: Mutant 342 | -10/Materials | Discovered new exit (range 15) 375 | -10/Materials | Entered another Materials area 375 | -9/Materials | Evolved 2 slots: Propulsion x1, Utility x1 695 | -9/Materials | Discovered new exit (range 6) 703 | -9/Materials | Entered Mines 862 | -9/Mines | Deemed a non-threat by the Exiles lab entrance 863 | -9/Mines | Discovered new exit (range 5) 871 | -9/Mines | Entered Exiles 913 | -9/Exiles | Met 8R-AWN 940 | -9/Exiles | Met EX-HEX 991 | -9/Exiles | Met EX-BIN 1014 | -9/Exiles | Aligned with FarCom system 1015 | -9/Exiles | Given EX-Vault access code 1055 | -9/Exiles | Opened EX-Vault 1073 | -9/Exiles | Found Flying Fortress v7 1108 | -9/Exiles | Warned to stay clear of 0b10 Research branches 1154 | -9/Exiles | Met EX-DEC 1208 | -9/Exiles | Visited The Gauntlet 1327 | -9/Exiles | Discovered new exit (range 14) 1348 | -9/Exiles | Left Exiles lab with Flying Fortress v7 1348 | -9/Exiles | Entered Mines 1840 | -8/Mines | Discovered new exit (range 5) 1848 | -8/Mines | Entered Materials 1848 | -8/Materials | Evolved 2 slots: Propulsion x1, Utility x1 2456 | -8/Materials | Discovered new exit (range 16) 2501 | -8/Materials | Identified exit to Factory 2504 | -8/Materials | Entered Factory 2504 | -7/Factory | Evolved 2 slots: Power x1, Utility x1 2888 | -7/Factory | Build established: Hacker-Mutant 2941 | -7/Factory | Discovered new exit (range 15) 2978 | -7/Factory | Identified exit to Lower Caves 2992 | -7/Factory | Sucked down chute 2992 | -7/Factory | Entered Waste 3007 | -7/Waste | EMP discharged 3008 | -7/Waste | Spotted C-40 Crusher 3017 | -7/Waste | Spotted C-40 Crusher 3023 | -7/Waste | Spotted C-40 Crusher 3025 | -7/Waste | Spotted C-40 Crusher 3027 | -7/Waste | Spotted C-40 Crusher 3030 | -7/Waste | Crushed by Compactor (1 part destroyed, 1 dropped) 3039 | -7/Waste | Spotted C-40 Crusher 3045 | -7/Waste | Discovered new exit (range 11) 3051 | -7/Waste | Identified exit to Factory 3051 | -7/Waste | Entered Factory 3333 | -7/Factory | Identified exit to Factory 3493 | -7/Factory | Entered another Factory area 3493 | -6/Factory | Evolved 2 slots: Propulsion x1, Utility x1 3548 | -6/Factory | Identified exit to DSF 3548 | -6/Factory | Entered DSF 3580 | -6/DSF | Additional patrols routed to DSF 3590 | -6/DSF | Discovered new exit (range 16) 3597 | -6/DSF | Identified exit to Factory 3597 | -6/DSF | Entered Factory 3597 | -5/Factory | Evolved 2 slots: Propulsion x1, Utility x1 3652 | -5/Factory | Discovered new exit (range 16) 3664 | -5/Factory | Identified exit to Upper Caves 3670 | -5/Factory | Discovered new exit (range 14) 3675 | -5/Factory | Identified exit to Factory 3680 | -5/Factory | Entered another Factory area 3680 | -4/Factory | Evolved 2 slots: Propulsion x1, Utility x1 3761 | -4/Factory | Discovered new exit (range 3) 3762 | -4/Factory | Identified exit to Upper Caves 3897 | -4/Factory | Discovered new exit (range 13) 3901 | -4/Factory | Identified exit to Extension 3947 | -4/Factory | Discovered new exit (range 9) 3950 | -4/Factory | Identified exit to Research 3953 | -4/Factory | Entered Research 3953 | -3/Research | Accompanied by 1 ally 3953 | -3/Research | Evolved 2 slots: Propulsion x1, Utility x1 3995 | -3/Research | Build established: Hacker-Sprinter 4296 | -3/Research | Discovered new exit (range 14) 4364 | -3/Research | Discovered new exit (range 4) 4365 | -3/Research | Identified exit to Research 4365 | -3/Research | Entered another Research area 4365 | -2/Research | Evolved 2 slots: Power x1, Utility x1 4369 | -2/Research | Identified exit to Access 4464 | -2/Research | Spotted B-90 Cyclops 4515 | -2/Research | Entered Access 4515 | -1/Access | Evolved 2 slots: Propulsion x1, Utility x1 4536 | -1/Access | Found Prototype Device 4537 | -1/Access | Identified Exp. Thermal Shield 4596 | -1/Access | Spotted B-99 Colossus 4620 | -1/Access | Spotted B-99 Colossus 4678 | -1/Access | Spotted B-99 Colossus 4934 | -1/Access | System corruption reached 10% 4934 | -1/Access | Spotted B-99 Colossus 4936 | -1/Access | Spotted B-99 Colossus 4957 | -1/Access | Core integrity fell below 50% 4964 | -1/Access | Core integrity fell below 20% 4967 | -1/Access | Destroyed by B-99 Colossus with Multirail Last Messages --------------- 04959_ Slug penetrates Wall. 04960_ P-80 Master heat short circuits Imp. Antigrav System. 04960_ Penetrated by Slug. 04960_ Lrg. Storage Unit destroyed. 04960_ Penetrated by Slug. 04961_ B-99 Colossus exits siege mode. 04962_ P-80 Master heat damages core (-14). 04963_ P-80 Master knocked back. 04963_ Imp. Signal Interpreter destroyed. 04963_ Critical hit (Blast). 04963_ Penetrated by Slug. 04963_ Slug penetrates Wall. 04963_ Knocked back. 04963_ Penetrated by Slug. 04963_ Slug penetrates Wall. 04963_ Slug penetrates Earth. 04965_ System corrupted: Substantial component data lost. 04965_ B-99 Colossus exits siege mode. 04966_ P-80 Master heat spikes uncontrollably. 04967_ Penetrated by Slug. Map ----- +----------------------------------------------------+ | ## ##############????# ?? #????#" | | ? #?????????????????##########????????## ! | | ? #????????????????????????????????????# | | ? ????????????????????????????????????# """ """ | | ? ????????????????????????????????????# """G""" | | ? #????????????????????????????????????########## | | ? #?????????????????????????????????????????????? | | #?????????????????????????????????????????????? | | ????????????????????????????????????????????? | | #???????????????????????????????????????????# | | /???????????????????????????????????????????# | | #???????????????????????????????????????????# | | # ##???????????????????????????????????????????# | | # ?????????????????????????????????????????????# | | # ?????????????????????????????????????????????# | | # ?????????????????????????????????????????????# | | # ?????????????????????????????????????????????# | | # ?????????????????????????????????????????????## | | # ??????????????????????????????????????????????? | | # ???####???????????????????????????????????????? | | # ####""#"#####################?????????????????? | | # """T ""]" #?????????????????? | | # " " " " " ##?#####?????????? | | # %" """""" """ BB ;###;;;########??"" | | " "????" ""?" BB %% # "" | | %! " "????" "??" @p p [/ %%* ; "" | | % !% " "????" "??" ![!% * %% ; "" | | = " "????" "??" !!% =% % % ; "" | | % " "????" "??" BB ########## # | | [ " ???? "??" BB #????????# #??? | | %% " ???? "??" #????????# #???? | | =! "###????###??#########????????+ | | ##????????????????????????????# | | ## # #????????????????????????????# | | ?#####????????????????????????????# | | ??????????????????????????????????#########+ | | % ??#######??????????????????????????????????? | | = ???# ###########????????????????????????? | | ! ##### #????????????????????????? | | #????????????????????????? | | + ###### p #????????????????????????? | | # ####### #????????????????????????? | | ### ###????????h?????????????????????????? | | ""S""" #?# #????????????????????????????????????? | | "" """ ??# #????????????????????????????????????? | | ????# #????????????????????????????????????? | | ??????# #????????????????????????????????????? | | #"#########+####?????????????????????????????????? | | # #?????????????????????????????????? | | # #?????????????????????????????????? | +----------------------------------------------------+ Best States ------------- Heat Dissipation 79 Energy Generation 47 Energy Capacity 630 Matter Stores 300 Matter Capacity 300 Sight Range 22 Terrain Scan Density 10 ECM Strength 2 Jamming Range 12 Armor Coverage 225 Propulsion Shielding 33 Evasion (%) 77 Recoil Reduction 4 Offensive Hacking 20 Item Schematics ----------------- None Robot Schematics ------------------ None Fabricated ------------ Nothing Alien Tech Used ----------------- None Achievements -------------- None Challenges ------------ None Game ------ Seed MakeshiftThermicCleaver Manual? 0 Play Time 01:35:02 Cumulative 173.2 hours Start 2024.10.06 @ 15:46:23 End 2024.10.06 @ 19:52:32 Sessions 3 Manual Loads 0 Difficulty Rogue Special Mode None Game No. 235 Rogue 235 Adventurer 0 Explorer 0 Win Type - Total 0 Types 0/0/0/0/0/0/0/0/0 Lore% 32 Gallery% 61 Achievement% 41 Wizard Run 0 Options --------- Layout 0 ASCII 0 Keyboard 0 Movement Mouse Keybinds 0 Fullscreen 1 Font 24/Smallcaps Map View 76x50 Zoom Use 0% Tactical HUD 1 Map Filters NONE Filters NONE Steam 1 RUN: 46651278-8695-464d-b003-a00f6c5d7deb